[Event "USA-ch Women 2024"]
[Site "Saint Louis"]
[Date "2024.10.18"]
[Round "7.1"]
[White "Atwell, Rose"]
[Black "Tokhirjonova, Gulrukhbegim"]
[Result "0-1"]
[ECO "C88"]
[WhiteElo "2185"]
[BlackElo "2374"]
[Annotator "TA"]
[PlyCount "60"]
[EventDate "2024.10.09"]
[EventType "tourn"]
[EventCountry "USA"]
[SourceTitle "playchess.com"]
[Source "ChessBase"]
[SourceQuality "1"]
[TimeControl "40/5400+30:1800+30"]

{[%evp 16,60,14,16,17,4,38,29,54,21,54,50,55,49,59,45,135,121,128,103,299,295,337,331,326,193,297,-911,-896,-911,-835,-29980,-29981,-29981,-29982,-29982,-29972,-29988,-29989,-29989,-6732,-29980,-29979,-29995,-29996,-29998,-29999]} 1. e4 {[%emt 0:00:01]} e5 {[%emt 0:00:14]} 2. Nf3 {[%emt 0:00:06]} Nc6 {[%emt 0:00:06]} 3. Bb5 {[%emt 0:00:05][%cal Bf1b5,Bb5a4,Ba4b3][%mdl 32]} a6 {[%emt 0:00:13]} 4. Ba4 {[%emt 0:00:06]} Nf6 {[%emt 0:00:10]} 5. O-O {[%emt 0:00:13]} Be7 {[%emt 0:00:17]} 6. Re1 {[%emt 0:00:12]} b5 {[%emt 0:00:09]} 7. Bb3 {[%emt 0:00:05]} O-O {[%emt 0:00:20]} 8. h3 {[%emt 0:00:09]} Bb7 {[%emt 0:00:18]} 9. d3 {[%emt 0:02:05]} d5 {[%emt 0:00:46]} 10. exd5 {[%emt 0:00:24]} Nxd5 {[%emt 0:00:10]} 11. a4 {[%emt 0:01:16]} b4 {[%emt 0:06:31] White has an edge.} 12. Nbd2 {[%emt 0:05:35][%cal Od2c4,Bb1d2,Bd2f3,Bf3g1][%mdl 32]} a5 {[%emt 0:13:07]} 13. Nxe5 {[%emt 0:22:54]} Nxe5 {[%emt 0:05:40]} 14. Rxe5 {[%emt 0:00:08]} Nf4 {[%emt 0:01:44]} 15. Nf3 {[%emt 0:05:49]} (15. Qg4 {seems wilder.} Nxg2 16. Ne4 Ra6 17. Bg5) 15... Nxg2 {[%emt 0:10:22]} 16. Kxg2 $16 {[%emt 0:05:15] Strongly threatening Be3.} Ra6 {[%emt 0:00:25]} 17. Kf1 {[%emt 0:07:34] [#] Hoping for Ng5.} Qd7 $2 {[%emt 0:04:24]} (17... Rf6 $16 18. Ng5 Qd4) 18. Ng1 $18 {[%emt 0:17:08]} Rg6 {[%emt 0:01:26]} 19. Qh5 $1 {[%emt 0:07:05]} (19. Rxa5 Rxg1+ (19... Bg2+ $2 20. Ke2 $18) 20. Kxg1 Qxh3 $11) 19... Bf6 {[%emt 0:12:49]} 20. Qf5 {[%emt 0:02:43]} (20. Rxa5 $142 {Black must now prevent Nf3.} Bd4 (20... Bg2+ $2 21. Ke2 $18) 21. Be3) 20... Qd6 {[%emt 0:00:33]} (20... Qd8 $142 21. Rd5 (21. Rxa5 Bg2+ 22. Ke1 Be4 $16) 21... Bxd5 22. Qxd5 Qe7) 21. Re2 $4 {[%emt 0:02:42][%mdl 8192]} (21. Rxa5 $18 c5 22. Ra7 (22. Rxc5 Bd4 $17) (22. Qxc5 $2 Qh2 $19)) 21... Qh2 $19 {[%emt 0:02:27][%csl Gh2][%cal Rg6g1] [#]} 22. Bxf7+ {[%emt 0:03:48]} Kh8 $1 {[%emt 0:00:08][%csl Gh2][%cal Rg6g1]} ({Stronger than} 22... Rxf7 23. Re8+ Rf8 24. Qe6+ Kh8 25. Rxf8#) 23. Re8 {[%emt 0:05:59]} Rxg1+ {[%emt 0:00:22]} 24. Ke2 {[%emt 0:00:01]} Rxe8+ {[%emt 0:00:16]} 25. Bxe8 {[%emt 0:00:02]} Qg2 {[%emt 0:03:11]} 26. Bh5 {[%emt 0:05:58]} Qf1+ {[%emt 0:00:26]} 27. Ke3 {[%emt 0:00:03]} Rg5 {[%emt 0:00:31]} (27... Rg3+ $142 28. fxg3 Qxf5 29. c3 Qxh5 30. Kd2 Qd5 (30... Qxh3 31. Kc2 Qh2+ 32. Bd2 b3+ 33. Kxb3 Qxd2 34. Kc4 Qxb2 35. d4 Be4 36. Rf1 Qa2+ 37. Kb5 Qb3+ 38. Kxa5 Qb6#) 31. d4 Qg2+ 32. Kd3 Be4+ (32... Qxh3 $2 33. Bf4 $19) 33. Kc4 Qe2+ (33... Qxh3 {is a self mate.} 34. Kb3 Bd5+ 35. c4 Qxg3+ 36. Kc2 b3+ 37. Kd1 Qd3+ 38. Bd2 Bf3+ 39. Ke1 Bh4#) 34. Kb3 Bd5+ 35. c4 Bxc4#) 28. Bd2 {[%emt 0:02:23]} Qxa1 {[%emt 0:00:48] Black mates.} 29. Qd7 {[%emt 0:00:09]} Re5+ {[%emt 0:00:06]} ({Weaker is} 29... Rxh5 30. Qe8#) 30. Kf4 {[%emt 0:00:10]} g5+ {[%emt 0:00:09] Black used his chance.   Weighted Error Value: White=0.65/Black=0.51.  Loses game:     	---       	Black=1      Missed win:     	White=1     	---        Mistake:       	White=1     	Black=2      Inaccurate:     	White=1     	Black=2      OK:         	White=5     	Black=1      Best:        	---       	Black=2      Strong:       	White=1     	---} 0-1

[Event "USA-ch Women 2024"]
[Site "Saint Louis"]
[Date "2024.10.18"]
[Round "7.2"]
[White "Cervantes Landeiro, Thalia"]
[Black "Abrahamyan, Tatev"]
[Result "1-0"]
[ECO "E29"]
[WhiteElo "2302"]
[BlackElo "2327"]
[Annotator "RC"]
[PlyCount "115"]
[EventDate "2024.10.09"]
[EventType "tourn"]
[EventCountry "USA"]
[SourceTitle "playchess.com"]
[Source "ChessBase"]
[SourceQuality "1"]
[TimeControl "40/5400+30:1800+30"]

1. d4 {[%emt 0:00:03]} Nf6 {[%emt 0:00:05]} 2. c4 {[%emt 0:00:08]} e6 {[%emt 0:00:08]} 3. Nc3 {[%emt 0:00:07]} Bb4 {[%emt 0:01:00]} 4. e3 {[%emt 0:00:08]} b6 {[%emt 0:00:37]} 5. a3 {[%emt 0:03:37]} Bxc3+ {[%emt 0:01:24]} 6. bxc3 {[%emt 0:00:06]} O-O {[%emt 0:05:52]} 7. Bd3 {[%emt 0:01:34]} c5 {[%emt 0:01:31]} 8. Ne2 {[%emt 0:02:51]} Nc6 {[%emt 0:02:03]} 9. e4 {[%emt 0:06:42]} Ne8 {[%emt 0:05:14]} 10. O-O {[%emt 0:04:56]} Ba6 {[%emt 0:08:03]} 11. Be3 {[%emt 0:08:12]} d6 {[%emt 0:04:16]} 12. Ng3 {[%emt 0:10:04]} Na5 {[%emt 0:04:51]} 13. Qe2 {[%emt 0:01:50]} Qd7 {[%emt 0:03:28]} 14. e5 {[%emt 0:06:14]} f5 {[%emt 0:14:59]} 15. exf6 {[%emt 0:03:59]} Nxf6 {[%emt 0:00:12]} 16. Nh5 {[%emt 0:06:01]} Qf7 {[%emt 0:07:04]} 17. Nxf6+ {[%emt 0:04:35]} Qxf6 {[%emt 0:01:19]} 18. Qh5 {[%emt 0:07:36]} h6 {[%emt 0:07:44]} 19. h4 {[%emt 0:03:26]} Nxc4 {[%emt 0:20:55]} 20. Bg5 {[%emt 0:01:56]} Qf7 {[%emt 0:00:05]} 21. Bg6 {[%emt 0:00:14]} Qc7 {[%emt 0:01:43]} 22. Rfe1 {[%emt 0:02:13]} e5 {[%emt 0:00:40]} 23. Re4 {[%emt 0:08:03]} Bc8 {[%emt 0:01:28]} 24. d5 {[%emt 0:01:54]} Na5 {[%emt 0:02:49]} 25. Bxh6 {[%emt 0:05:32]} gxh6 {[%emt 0:01:23]} 26. Re3 {[%emt 0:00:03]} Rf6 {[%emt 0:01:22]} 27. Rg3 {[%emt 0:01:15]} Kf8 {[%emt 0:00:04]} 28. Qxh6+ {[%emt 0:01:05]} Qg7 {[%emt 0:00:04]} 29. Qh5 {[%emt 0:00:08]} Bb7 {[%emt 0:00:46]} 30. Re1 {[%emt 0:05:33]} Ke7 {[%emt 0:01:10]} 31. Be8 {[%emt 0:03:12]} Qh6 {[%emt 0:00:53]} 32. Rxe5+ {[%emt 0:02:27]} dxe5 {[%emt 0:00:44]} 33. Qxe5+ {[%emt 0:00:02]} Kf8 {[%emt 0:01:01]} 34. Re3 {[%emt 0:00:39]} Qg7 {[%emt 0:01:45]} 35. Bh5 {[%emt 0:00:14]} Rg6 {[%emt 0:00:40]} 36. Bxg6 {[%emt 0:00:58]} Qxe5 {[%emt 0:00:07]} 37. Rxe5 {[%emt 0:00:01]} Rd8 {[%emt 0:00:45]} 38. h5 {[%emt 0:00:57]} Rxd5 {[%emt 0:00:35]} 39. Re8+ {[%emt 0:00:07]} Kg7 {[%emt 0:00:02]} 40. Re7+ {[%emt 0:01:12]} Kf6 {[%emt 0:00:44]} 41. Rf7+ {[%emt 0:03:59]} Kg5 {[%emt 0:03:56]} 42. Kh2 {[%emt 0:03:39]} Bc6 {[%emt 0:04:30]} 43. Kh3 {[%emt 0:08:41]} Rd7 {[%emt 0:04:17]} 44. f4+ {[%emt 0:01:31]} Kh6 {[%emt 0:00:02]} 45. g4 {[%emt 0:00:36]} Rxf7 {[%emt 0:01:05]} 46. Bxf7 {[%emt 0:00:04]} Nb7 {[%emt 0:08:37]} 47. g5+ {[%emt 0:02:15]} Kg7 {[%emt 0:00:05]} 48. Be6 {[%emt 0:00:51]} Nd8 {[%emt 0:05:09]} 49. h6+ {[%emt 0:02:12]} Kh8 {[%emt 0:01:39]} 50. Bg4 {[%emt 0:04:18]} Be4 {[%emt 0:03:46]} 51. f5 {[%emt 0:02:25]} Nf7 {[%emt 0:01:03]} 52. Kg3 {[%emt 0:02:29]} b5 {[%emt 0:00:40]} 53. Kf4 {[%emt 0:00:24]} Bd5 {[%emt 0:01:43]} 54. Be2 {[%emt 0:01:12]} a6 {[%emt 0:00:25]} 55. f6 {[%emt 0:02:24]} Kg8 {[%emt 0:00:46]} 56. Bd3 {[%emt 0:00:47]} Bb3 {[%emt 0:00:32]} 57. h7+ {[%emt 0:00:14]} Kh8 {[%emt 0:00:27]} 58. g6 {[%emt 0:00:08]} 1-0

[Event "USA-ch Women 2024"]
[Site "Saint Louis"]
[Date "2024.10.18"]
[Round "7.3"]
[White "Lee, Megan"]
[Black "Lee, Alice"]
[Result "1-0"]
[ECO "B30"]
[WhiteElo "2253"]
[BlackElo "2395"]
[Annotator "TA"]
[PlyCount "57"]
[EventDate "2024.10.09"]
[EventType "tourn"]
[EventCountry "USA"]
[SourceTitle "playchess.com"]
[Source "ChessBase"]
[SourceQuality "1"]
[TimeControl "40/5400+30:1800+30"]

{[%evp 9,57,8,31,26,31,27,31,29,25,11,10,0,18,14,31,7,13,0,40,32,102,102,102,51,59,62,54,52,53,63,89,86,83,82,152,154,188,187,295,299,1030,1029,1040,1020,1040,1021,1276,1209,1283,1131]} 1. e4 {[%emt 0:00:01]} c5 {[%emt 0:00:16]} 2. Nf3 {[%emt 0:00:05]} Nc6 {[%emt 0:00:45]} 3. Bb5 {[%emt 0:00:05]} e6 {[%emt 0:00:43]} 4. Bxc6 {[%emt 0:01:09]} bxc6 {[%emt 0:00:26]} 5. b3 {[%emt 0:00:36]} Qc7 {[%emt 0:01:59]} 6. Bb2 {[%emt 0:01:36]} d6 {[%emt 0:02:20]} 7. e5 {[%emt 0:01:39]} d5 {[%emt 0:01:22]} 8. O-O {[%emt 0:01:58] White is slightly better.} Ne7 {[%emt 0:01:50]} 9. Re1 {[%emt 0:01:24]} Nf5 {[%emt 0:00:58]} 10. d3 {[%emt 0:05:55]} Be7 {[%emt 0:00:29]} 11. c4 {[%emt 0:06:09]} Ba6 {[%emt 0:05:10]} 12. Nc3 {[%emt 0:02:34]} Rd8 {[%emt 0:01:15]} 13. Qc1 {[%emt 0:01:49]} O-O {[%emt 0:11:57]} 14. Na4 {[%emt 0:01:22]} dxc4 {[%emt 0:04:13]} (14... Nd4 $14) 15. dxc4 $16 {[%emt 0:00:16]} Nd4 {[%emt 0:01:23] [#]} 16. Re4 {[%emt 0:08:56]} (16. Qc3 $1 $16) 16... Nxf3+ $14 {[%emt 0:01:44]} 17. gxf3 {[%emt 0:00:05]} Rd3 {[%emt 0:00:50]} 18. f4 {[%emt 0:04:24]} Rfd8 {[%emt 0:02:20][%cal Bf8d8,Bd8d7,Bd7d3][%mdl 32]} 19. Re3 {[%emt 0:07:50]} R8d7 {[%emt 0:11:42]} 20. Rxd3 {[%emt 0:09:01]} Rxd3 {[%emt 0:02:12]} 21. Ba3 {[%emt 0:00:26]} Qa5 {[%emt 0:17:27] [#]} ({Black should try} 21... f6) 22. Qe1 $1 $16 {[%emt 0:02:21]} Qd8 {[%emt 0:09:09]} 23. Bxc5 {[%emt 0:02:32]} g5 {[%emt 0:02:40]} (23... Bc8 $142 24. Bxe7 (24. Bxa7 c5 $16) 24... Qxe7) 24. Qe2 $18 {[%emt 0:08:09] Threatens to win with Bxe7.} ({Not} 24. Bxa7 gxf4 25. Bb6 Qf8 $16) 24... gxf4 $2 {[%emt 0:11:40]} (24... Bxc5 25. Nxc5 Rd2) 25. Bxe7 {[%emt 0:01:49] White is clearly winning.} ({Weaker is} 25. Bxa7 Kh8 $16 (25... f3 26. Qf1 $16)) 25... f3 {[%emt 0:00:03] [#]} 26. Qxf3 $3 {[%emt 0:00:15][%mdl 512]} Rxf3 {[%emt 0:02:10]} 27. Bxd8 {[%emt 0:00:06]} Rd3 {[%emt 0:00:17]} 28. Bf6 {[%emt 0:00:34]} Bc8 {[%emt 0:00:11]} 29. Nc5 {[%emt 0:00:22] Weighted Error Value: White=0.05 (flawless) /Black=0.26 (precise) .  Mistake:       	White=1     	Black=4      Inaccurate:     	---       	Black=2      OK:         	White=10    	Black=8      Best:        	White=1     	---        Strong:       	White=1     	---} 1-0

[Event "USA-ch Women 2024"]
[Site "Saint Louis"]
[Date "2024.10.18"]
[Round "7.4"]
[White "Yip, Carissa"]
[Black "Paikidze, Nazi"]
[Result "1-0"]
[ECO "B12"]
[WhiteElo "2418"]
[BlackElo "2314"]
[Annotator "TA"]
[PlyCount "73"]
[EventDate "2024.10.09"]
[EventType "tourn"]
[EventCountry "USA"]
[SourceTitle "playchess.com"]
[Source "ChessBase"]
[SourceQuality "1"]
[TimeControl "40/5400+30:1800+30"]

{[%evp 9,73,0,16,6,9,0,3,4,35,5,12,0,0,0,8,0,-13,-12,0,0,0,0,16,8,10,19,34,0,10,27,18,29,362,366,460,444,438,377,482,476,580,578,812,790,845,843,862,789,775,493,979,929,1098,1094,1117,1099,1117,1117,1125,1111,1139,1124,1125,1092,29985,29986]} 1. e4 {[%emt 0:00:01]} c6 {[%emt 0:00:04]} 2. d4 {[%emt 0:00:03]} d5 {[%emt 0:00:05]} 3. e5 {[%emt 0:00:02]} Bf5 {[%emt 0:00:07]} 4. h4 {[%emt 0:00:03]} Qb6 {[%emt 0:00:48]} 5. h5 {[%emt 0:01:17]} h6 {[%emt 0:01:22]} 6. c3 {[%emt 0:00:11]} e6 {[%emt 0:02:16]} 7. Bd3 {[%emt 0:01:08]} Bxd3 {[%emt 0:01:48]} 8. Qxd3 {[%emt 0:00:05] The position is equal.} Qa6 {[%emt 0:04:43]} 9. Qe3 {[%emt 0:10:08]} Nd7 {[%emt 0:03:11]} 10. Ne2 {[%emt 0:01:27]} c5 {[%emt 0:02:22]} 11. Nd2 {[%emt 0:07:04]} Ne7 {[%emt 0:05:04]} 12. a3 {[%emt 0:00:40]} Nf5 {[%emt 0:12:13]} 13. Qf3 {[%emt 0:08:00]} cxd4 {[%emt 0:15:19]} 14. cxd4 {[%emt 0:00:26]} Rc8 {[%emt 0:00:31]} 15. g4 {[%emt 0:04:32]} Nxd4 {[%emt 0:10:44]} 16. Nxd4 {[%emt 0:00:06] [#] Black must now prevent Qe3.} Nxe5 {[%emt 0:00:04]} 17. Qe2 {[%emt 0:12:45]} Nd3+ {[%emt 0:00:47]} 18. Kd1 {[%emt 0:00:13] Threatening Rh3.} Bc5 {[%emt 0:11:34]} 19. Rh3 $1 {[%emt 0:01:05]} Qa4+ $1 {[%emt 0:04:44]} 20. N2b3 {[%emt 0:00:14]} Nxf2+ {[%emt 0:02:54][%mdl 8192] Loses the game.} (20... Bxd4 $11 21. Rxd3 Bf6) 21. Qxf2 $18 {[%emt 0:00:17]} e5 {[%emt 0:01:41][%cal Rc5d4]} 22. Qf5 {[%emt 0:06:01][%csl LRc8,LRe5]} O-O {[%emt 0:00:16]} 23. Nc2 {[%emt 0:01:44]} (23. Qxe5 Rce8 24. Qxd5 (24. Qf4 Re4 $11) 24... Bxd4 $16) 23... d4 {[%emt 0:03:22]} 24. g5 {[%emt 0:00:37]} ({Not} 24. Qxe5 d3 25. Rxd3 (25. Nxc5 $2 Qxc2+ 26. Ke1 Rfe8 $19) 25... Qxg4+ 26. Qe2 Qg1+ 27. Ne1 Rfe8 $11) 24... d3 {[%emt 0:01:17]} 25. Rxd3 {[%emt 0:00:53]} e4 {[%emt 0:00:31]} 26. Rc3 {[%emt 0:03:41]} (26. Nxc5 Rxc5 27. Qxc5 exd3 $14) 26... Rcd8+ {[%emt 0:01:59]} 27. Bd2 {[%emt 0:00:48]} e3 {[%emt 0:01:24]} 28. Nxe3 {[%emt 0:01:17]} Bd4 {[%emt 0:02:44]} 29. Qg4 {[%emt 0:00:13]} f5 {[%emt 0:01:21]} (29... b5 $142 30. Kc2 Bxe3 31. Qxa4 bxa4 32. Bxe3 (32. Rxe3 axb3+ 33. Rxb3 hxg5 $18) 32... axb3+ 33. Kxb3 hxg5) 30. Nxf5 {[%emt 0:01:53]} Rxf5 {[%emt 0:01:01]} 31. Qxf5 {[%emt 0:00:04]} Bxc3 {[%emt 0:01:02]} 32. Qe6+ {[%emt 0:00:04]} Kh8 {[%emt 0:00:57]} 33. bxc3 {[%emt 0:00:05]} Re8 {[%emt 0:01:28]} 34. Qf7 {[%emt 0:00:07]} hxg5 {[%emt 0:02:28]} 35. Kc2 {[%emt 0:00:29]} Qe4+ {[%emt 0:00:57]} 36. Kb2 {[%emt 0:00:05] [#] aiming for h6.} Rd8 {[%emt 0:00:51]} 37. h6 {[%emt 0:00:09] Weighted Error Value: White=0.38/Black=0.54.  Loses game:     	---       	Black=1      Inaccurate:     	White=1     	Black=2      OK:         	White=9     	Black=5      Best:        	White=2     	Black=3      Strong:       	White=1     	Black=1} 1-0

[Event "USA-ch Women 2024"]
[Site "Saint Louis"]
[Date "2024.10.18"]
[Round "7.5"]
[White "Yu, Jennifer"]
[Black "Krush, Irina"]
[Result "1-0"]
[ECO "B21"]
[WhiteElo "2267"]
[BlackElo "2388"]
[Annotator "TA"]
[PlyCount "81"]
[EventDate "2024.10.09"]
[EventType "tourn"]
[EventCountry "USA"]
[SourceTitle "playchess.com"]
[Source "ChessBase"]
[SourceQuality "1"]
[TimeControl "40/5400+30:1800+30"]

{[%evp 9,81,0,0,0,25,12,24,0,0,0,0,0,0,-14,0,-30,-8,-26,0,-53,-59,-54,-49,-54,-59,-53,-51,-60,-52,-59,-65,-53,-31,-30,-51,-43,-43,-41,-45,-72,-41,-54,-30,-56,-66,-49,-58,-55,-18,-26,-21,-47,0,0,0,0,0,0,117,108,103,158,134,153,153,130,360,356,29991,29992,29996,29997,29997,29998]} 1. e4 {[%emt 0:00:09]} c5 {[%emt 0:04:43]} 2. d4 {[%emt 0:00:45]} cxd4 {[%emt 0:00:14]} 3. Qxd4 {[%emt 0:00:15]} Nc6 {[%emt 0:00:16]} 4. Qd3 {[%emt 0:00:26]} Nf6 {[%emt 0:01:45]} 5. Nc3 {[%emt 0:00:34]} e6 {[%emt 0:04:56]} 6. Bf4 {[%emt 0:01:53]} Bb4 {[%emt 0:04:34]} 7. O-O-O {[%emt 0:06:05]} O-O {[%emt 0:01:41]} 8. f3 {[%emt 0:11:04] White has an edge.} d5 {[%emt 0:05:49]} 9. exd5 {[%emt 0:02:28]} exd5 {[%emt 0:02:32]} 10. Nge2 {[%emt 0:14:07]} Be6 $1 {[%emt 0:03:13]} 11. Nb5 {[%emt 0:11:28]} Rc8 {[%emt 0:02:36]} 12. Ned4 {[%emt 0:08:16]} Bc5 {[%emt 0:01:24]} 13. Kb1 {[%emt 0:04:48]} a6 {[%emt 0:12:37]} 14. Nxc6 {[%emt 0:02:54]} ({Better is} 14. Be3 $1 $11 Nd7 (14... axb5 15. Nxe6 fxe6 16. Bxc5 $16) 15. Nxe6 fxe6 16. Nd4) 14... bxc6 $15 {[%emt 0:00:02]} 15. Nd4 {[%emt 0:05:19]} Bxd4 $1 {[%emt 0:00:09]} 16. Qxd4 {[%emt 0:00:02][%cal Of4e5]} c5 {[%emt 0:00:09]} 17. Qa4 {[%emt 0:00:14][%cal Oc2c4]} d4 {[%emt 0:01:07]} 18. c4 {[%emt 0:01:19][%cal Of1d3] Repels Nd5} Nh5 {[%emt 0:15:24]} 19. Bc1 {[%emt 0:02:30][%cal Og2g4]} Bf5+ {[%emt 0:12:22]} 20. Ka1 {[%emt 0:03:48][%cal Og2g4]} Qd6 {[%emt 0:01:30]} 21. g4 {[%emt 0:01:47]} Bd7 {[%emt 0:00:27]} 22. Qc2 {[%emt 0:00:41]} Nf4 {[%emt 0:00:22]} 23. h4 {[%emt 0:02:45][%cal Bh2h4,Bh4h5,Bh5h6][%mdl 32] Black must now prevent Qh2.} f5 {[%emt 0:08:20]} 24. Rg1 {[%emt 0:00:32]} fxg4 {[%emt 0:00:46]} 25. fxg4 {[%emt 0:00:04]} Rce8 {[%emt 0:01:08]} 26. h5 {[%emt 0:08:53]} Bc6 {[%emt 0:00:39]} 27. Bd3 {[%emt 0:05:50]} Nxd3 {[%emt 0:00:37]} 28. Qxd3 {[%emt 0:00:04]} Rf3 {[%emt 0:06:50]} 29. Qd2 {[%emt 0:00:13]} Qe6 {[%emt 0:01:09] White is weak on the light squares} 30. h6 {[%emt 0:02:41]} Qxc4 {[%emt 0:00:53]} (30... Qxh6 $15 31. Qxh6 gxh6) 31. Qg5 $11 {[%emt 0:00:07][%csl Gh6][%cal Rg5g7]} Rf7 {[%emt 0:02:39]} 32. Rge1 {[%emt 0:01:22] Rxe8+ is the strong threat.} Be4 {[%emt 0:02:51]} 33. b3 {[%emt 0:02:07]} Qc2 {[%emt 0:02:15]} (33... Qb5 $1 $11) 34. Bb2 $16 {[%emt 0:00:31] Strongly threatening Rd2. Chess con chili.} Bc6 {[%emt 0:00:49]} 35. Rxe8+ $1 {[%emt 0:00:45]} Bxe8 {[%emt 0:00:01] [#]} 36. Re1 {[%emt 0:00:36]} (36. Rc1 $6 Qh2 $14) 36... Bc6 {[%emt 0:00:16] [#]} 37. Rc1 $1 {[%emt 0:00:13]} Qe2 {[%emt 0:00:58] This costs Black the game.} (37... Qe4 $16) 38. Qxc5 $18 {[%emt 0:00:21]} d3 $2 {[%emt 0:00:55]} (38... Be8 $18 39. Qxd4 Rd7) 39. Qxc6 {[%emt 0:00:18] White mates.} d2 {[%emt 0:00:29]} 40. Qa8+ {[%emt 0:00:10]} (40. Bxg7 $2 {is the wrong capture.} dxc1=Q+ (40... dxc1=R+ $2 41. Qxc1 Rf1 42. Kb1 $19) 41. Qxc1 Rf1 $19 (41... Qxg4 42. a4 $11) (41... Qxg4 42. a4 $11)) 40... Rf8 {[%emt 0:00:28]} 41. Qd5+ {[%emt 0:30:04] Weighted Error Value: White=0.08 (flawless) /Black=0.38.  Loses game:     	---       	Black=1      Mistake:       	White=1     	Black=3      Inaccurate:     	White=4     	Black=2      OK:         	White=12    	Black=13     Best:        	White=2     	Black=2      Strong:       	White=2     	Black=2} 1-0

[Event "USA-ch Women 2024"]
[Site "Saint Louis"]
[Date "2024.10.18"]
[Round "7.6"]
[White "Zatonskih, Anna"]
[Black "Pourkashiyan, Atousa"]
[Result "1/2-1/2"]
[ECO "E17"]
[WhiteElo "2312"]
[BlackElo "2269"]
[Annotator "RC"]
[PlyCount "116"]
[EventDate "2024.10.09"]
[EventType "tourn"]
[EventCountry "USA"]
[SourceTitle "playchess.com"]
[Source "ChessBase"]
[SourceQuality "1"]
[TimeControl "40/5400+30:1800+30"]

1. Nf3 {[%emt 0:00:17]} d5 {[%emt 0:00:09]} 2. g3 {[%emt 0:00:28]} b6 {[%emt 0:00:14]} 3. Bg2 {[%emt 0:09:34]} Bb7 {[%emt 0:00:15]} 4. O-O {[%emt 0:01:39]} Nd7 {[%emt 0:00:31]} 5. d4 {[%emt 0:05:38]} e6 {[%emt 0:00:25]} 6. b3 {[%emt 0:04:06]} Ngf6 {[%emt 0:01:14]} 7. Bb2 {[%emt 0:07:13]} Be7 {[%emt 0:00:36]} 8. Nbd2 {[%emt 0:04:57]} O-O {[%emt 0:00:58]} 9. c4 {[%emt 0:00:18]} Ne4 {[%emt 0:11:52]} 10. Rc1 {[%emt 0:11:42]} f5 {[%emt 0:04:13]} 11. e3 {[%emt 0:02:56]} Bf6 {[%emt 0:09:15]} 12. Qc2 {[%emt 0:05:04]} c5 {[%emt 0:06:16]} 13. Rfd1 {[%emt 0:02:45]} Rc8 {[%emt 0:07:32]} 14. Nb1 {[%emt 0:03:54]} Qe8 {[%emt 0:11:43]} 15. Qe2 {[%emt 0:12:13]} dxc4 {[%emt 0:07:15]} 16. bxc4 {[%emt 0:00:13]} cxd4 {[%emt 0:00:40]} 17. exd4 {[%emt 0:01:53]} Qh5 {[%emt 0:00:37]} 18. Re1 {[%emt 0:02:36]} Rfe8 {[%emt 0:05:39]} 19. Qe3 {[%emt 0:04:05]} Ng5 {[%emt 0:08:07]} 20. Nxg5 {[%emt 0:01:58]} Bxg5 {[%emt 0:00:12]} 21. f4 {[%emt 0:00:19]} Bxg2 {[%emt 0:00:17]} 22. Kxg2 {[%emt 0:00:01]} Bf6 {[%emt 0:00:47]} 23. Nd2 {[%emt 0:01:03]} Nb8 {[%emt 0:02:36]} 24. Nf3 {[%emt 0:01:23]} Qf7 {[%emt 0:02:50]} 25. Rc2 {[%emt 0:03:01]} Qb7 {[%emt 0:01:05]} 26. Kf2 {[%emt 0:01:24]} b5 {[%emt 0:00:07]} 27. Qb3 {[%emt 0:01:26]} Qd7 {[%emt 0:05:33]} 28. c5 {[%emt 0:03:22]} Na6 {[%emt 0:00:45]} 29. Qa3 {[%emt 0:05:26]} Nc7 {[%emt 0:03:07]} 30. c6 {[%emt 0:02:15]} Qe7 {[%emt 0:00:10]} 31. Qxa7 {[%emt 0:00:18]} Ra8 {[%emt 0:00:11]} 32. Qc5 {[%emt 0:00:20]} Qxc5 {[%emt 0:01:06]} 33. dxc5 {[%emt 0:00:56]} Rxa2 {[%emt 0:00:04]} 34. Ree2 {[%emt 0:00:04]} Nd5 {[%emt 0:05:11]} 35. Be5 {[%emt 0:00:20]} Rxc2 {[%emt 0:01:00]} 36. Rxc2 {[%emt 0:00:01]} Nb4 {[%emt 0:00:31]} 37. Rd2 {[%emt 0:01:32]} Nxc6 {[%emt 0:00:05]} 38. Bxf6 {[%emt 0:01:30]} gxf6 {[%emt 0:00:04]} 39. Rd6 {[%emt 0:00:03]} Rc8 {[%emt 0:05:38]} 40. Rxe6 {[%emt 0:00:29]} b4 {[%emt 0:00:02]} 41. Nd2 {[%emt 0:09:56]} Kf7 {[%emt 0:08:20]} 42. Rd6 {[%emt 0:01:16]} Ne7 {[%emt 0:06:08]} 43. Nb3 {[%emt 0:08:29]} Ra8 {[%emt 0:00:52]} 44. Rd4 {[%emt 0:07:39]} Ra2+ {[%emt 0:02:02]} 45. Kg1 {[%emt 0:04:33]} Nc6 {[%emt 0:03:42]} 46. Rd7+ {[%emt 0:00:24]} Kg6 {[%emt 0:00:11]} 47. Rd6 {[%emt 0:00:38]} Rb2 {[%emt 0:02:01]} 48. Rxc6 {[%emt 0:00:27]} Rxb3 {[%emt 0:00:06]} 49. Rb6 {[%emt 0:00:27]} Rc3 {[%emt 0:00:36]} 50. Rxb4 {[%emt 0:00:13]} Rxc5 {[%emt 0:00:02]} 51. Rb2 {[%emt 0:00:50]} Rc3 {[%emt 0:00:39]} 52. Kg2 {[%emt 0:00:05]} Ra3 {[%emt 0:00:10]} 53. Re2 {[%emt 0:01:01]} Rb3 {[%emt 0:00:04]} 54. Kf2 {[%emt 0:00:17]} Ra3 {[%emt 0:00:07]} 55. Kg2 {[%emt 0:01:12]} Rb3 {[%emt 0:00:02]} 56. Kf2 {[%emt 0:00:52]} Ra3 {[%emt 0:00:02]} 57. Kg2 {[%emt 0:00:08]} Rb3 {[%emt 0:00:05]} 58. Kf2 {[%emt 0:00:05]} Ra3 {[%emt 0:00:10]} 1/2-1/2